[Event "Titled Tuesday Blitz January 03 Early 2023"]
[White "Goryachkina, Aleksandra"]
[Black "Kamsky, Gata"]
[WhiteFideId "4147103"]
[BlackFideId "2000024"]
[WhiteElo "2571"]
[BlackElo "2665"]
[Result "0-1"]
[Round "11"]
[TimeControl "180+2"]
[Date "2023.01.03"]
[WhiteClock "0:00:01"]
[BlackClock "0:00:18"]

1. e4 {[%clk 0:02:59]}  c5 {[%clk 0:02:35]} 2. Nf3 {[%clk 0:02:59]}  e6 {[%clk 0:02:34]} 3. c3 {[%clk 0:02:58]}  Nf6 {[%clk 0:02:32]} 4. e5 {[%clk 0:02:58]}  Nd5 {[%clk 0:02:32]} 5. d4 {[%clk 0:02:58]}  cxd4 {[%clk 0:02:32]} 6. cxd4 {[%clk 0:02:59]}  b6 {[%clk 0:02:33]} 7. Nc3 {[%clk 0:02:43]}  Nxc3 {[%clk 0:02:32]} 8. bxc3 {[%clk 0:02:43]}  Ba6 {[%clk 0:02:32]} 9. Bxa6 {[%clk 0:02:40]}  Nxa6 {[%clk 0:02:32]} 10. O-O {[%clk 0:02:39]}  Be7 {[%clk 0:02:31]} 11. Qd3 {[%clk 0:02:28]}  Nc7 {[%clk 0:02:31]} 12. c4 {[%clk 0:02:27]}  d5 {[%clk 0:02:31]} 13. exd6 {[%clk 0:02:23]}  Qxd6 {[%clk 0:02:29]} 14. a4 {[%clk 0:02:20]}  O-O {[%clk 0:02:28]} 15. Ba3 {[%clk 0:02:20]}  Qd8 {[%clk 0:02:27]} 16. Bxe7 {[%clk 0:02:19]}  Qxe7 {[%clk 0:02:27]} 17. a5 {[%clk 0:02:19]}  h6 {[%clk 0:02:17]} 18. Ne5 {[%clk 0:02:15]}  Qd6 {[%clk 0:02:11]} 19. h3 {[%clk 0:02:07]}  Rad8 {[%clk 0:02:08]} 20. axb6 {[%clk 0:01:57]}  axb6 {[%clk 0:02:06]} 21. Qf3 {[%clk 0:01:40]}  b5 {[%clk 0:01:53]} 22. Nc6 {[%clk 0:01:23]}  bxc4 {[%clk 0:01:51]} 23. Nxd8 {[%clk 0:01:19]}  Rxd8 {[%clk 0:01:50]} 24. Ra7 {[%clk 0:01:09]}  c3 {[%clk 0:01:37]} 25. Rc1 {[%clk 0:01:01]}  Rf8 {[%clk 0:01:30]} 26. Rxc7 {[%clk 0:00:28]}  Qxc7 {[%clk 0:01:29]} 27. Qxc3 {[%clk 0:00:26]}  Qd7 {[%clk 0:01:28]} 28. Qc5 {[%clk 0:00:21]}  Rd8 {[%clk 0:01:28]} 29. Rc4 {[%clk 0:00:21]}  Qb7 {[%clk 0:01:24]} 30. Rb4 {[%clk 0:00:20]}  Qe4 {[%clk 0:01:22]} 31. Qc3 {[%clk 0:00:09]}  Ra8 {[%clk 0:01:19]} 32. Rc4 {[%clk 0:00:09]}  Ra2 {[%clk 0:01:12]} 33. Qe3 {[%clk 0:00:04]}  Qf5 {[%clk 0:01:00]} 34. Rc1 {[%clk 0:00:03]}  Ra8 {[%clk 0:00:44]} 35. Rd1 {[%clk 0:00:03]}  Rd8 {[%clk 0:00:44]} 36. Qc3 {[%clk 0:00:03]}  g5 {[%clk 0:00:41]} 37. Qe3 {[%clk 0:00:04]}  Rd5 {[%clk 0:00:41]} 38. Rc1 {[%clk 0:00:04]}  Kg7 {[%clk 0:00:40]} 39. Re1 {[%clk 0:00:02]}  Qf6 {[%clk 0:00:40]} 40. Rd1 {[%clk 0:00:02]}  e5 {[%clk 0:00:40]} 41. Qe4 {[%clk 0:00:02]}  Qd6 {[%clk 0:00:39]} 42. Re1 {[%clk 0:00:02]}  exd4 {[%clk 0:00:38]} 43. Qd3 {[%clk 0:00:02]}  Qf6 {[%clk 0:00:38]} 44. g3 {[%clk 0:00:02]}  h5 {[%clk 0:00:38]} 45. Kg2 {[%clk 0:00:03]}  h4 {[%clk 0:00:37]} 46. g4 {[%clk 0:00:02]}  Rc5 {[%clk 0:00:36]} 47. Re4 {[%clk 0:00:02]}  Rd5 {[%clk 0:00:33]} 48. Kg1 {[%clk 0:00:02]}  Rd6 {[%clk 0:00:31]} 49. Kg2 {[%clk 0:00:02]}  Kf8 {[%clk 0:00:28]} 50. Kg1 {[%clk 0:00:02]}  Rd5 {[%clk 0:00:27]} 51. Kg2 {[%clk 0:00:03]}  Qd6 {[%clk 0:00:27]} 52. Kg1 {[%clk 0:00:03]}  Qc5 {[%clk 0:00:26]} 53. Kg2 {[%clk 0:00:03]}  Kg7 {[%clk 0:00:21]} 54. Kg1 {[%clk 0:00:04]}  Qc3 {[%clk 0:00:21]} 55. Qxc3 {[%clk 0:00:02]}  dxc3 {[%clk 0:00:21]} 56. Rc4 {[%clk 0:00:03]}  Rd1+ {[%clk 0:00:20]} 57. Kg2 {[%clk 0:00:03]}  Rc1 {[%clk 0:00:21]} 58. Rc5 {[%clk 0:00:03]}  f6 {[%clk 0:00:21]} 59. Rc7+ {[%clk 0:00:02]}  Kf8 {[%clk 0:00:21]} 60. Kh2 {[%clk 0:00:03]}  Ke8 {[%clk 0:00:21]} 61. Kg2 {[%clk 0:00:03]}  Kd8 {[%clk 0:00:22]} 62. Rc6 {[%clk 0:00:04]}  Ke7 {[%clk 0:00:22]} 63. Kh2 {[%clk 0:00:04]}  Kd7 {[%clk 0:00:18]} 64. Rc4 {[%clk 0:00:01]}  Kd6 {[%clk 0:00:18]} 65. Kg2 {[%clk 0:00:02]}  Kd5 {[%clk 0:00:18]} 66. Rc8 {[%clk 0:00:02]}  Kd4 {[%clk 0:00:18]} 67. Rd8+ {[%clk 0:00:02]}  Kc4 {[%clk 0:00:18]} 68. Rc8+ {[%clk 0:00:03]}  Kb3 {[%clk 0:00:19]} 69. Rb8+ {[%clk 0:00:03]}  Kc2 {[%clk 0:00:19]} 70. Rf8 {[%clk 0:00:03]}  Rd1 {[%clk 0:00:19]} 71. Rxf6 {[%clk 0:00:03]}  Kb2 {[%clk 0:00:17]} 72. Rb6+ {[%clk 0:00:03]}  Ka3 {[%clk 0:00:17]} 73. Rc6 {[%clk 0:00:02]}  Kb4 {[%clk 0:00:17]} 74. Rb6+ {[%clk 0:00:02]}  Kc5 {[%clk 0:00:17]} 75. Rb8 {[%clk 0:00:02]}  Rd3 {[%clk 0:00:17]} 76. Rc8+ {[%clk 0:00:02]}  Kb4 {[%clk 0:00:17]} 77. Rb8+ {[%clk 0:00:02]}  Ka3 {[%clk 0:00:18]} 78. Rc8 {[%clk 0:00:01]}  Kb2 {[%clk 0:00:18]} 79. Rb8+ {[%clk 0:00:02]}  Kc1 {[%clk 0:00:18]} 80. Rb5 {[%clk 0:00:01]}  c2 {[%clk 0:00:18]} 81. Rc5 {[%clk 0:00:01]}  Kd2 {[%clk 0:00:18]} 0-1


[Site "https://www.chess.com"]

[Event "Titled Tuesday Blitz January 03 Early 2023"]
[White "Indjic, Aleksandar"]
[Black "Averjanov, Alexey"]
[WhiteFideId "911925"]
[BlackFideId "14109867"]
[WhiteElo "2618"]
[BlackElo "2399"]
[Result "1/2-1/2"]
[Round "11"]
[TimeControl "180+2"]
[Date "2023.01.03"]
[WhiteClock "0:00:03"]
[BlackClock "0:00:02"]

1. e4 {[%clk 0:02:51]}  c6 {[%clk 0:02:59]} 2. d4 {[%clk 0:02:50]}  d5 {[%clk 0:03:00]} 3. e5 {[%clk 0:02:50]}  Bf5 {[%clk 0:03:00]} 4. h4 {[%clk 0:02:50]}  h5 {[%clk 0:03:00]} 5. Bd3 {[%clk 0:02:50]}  Bxd3 {[%clk 0:03:00]} 6. Qxd3 {[%clk 0:02:51]}  e6 {[%clk 0:03:00]} 7. Bg5 {[%clk 0:02:50]}  Qa5+ {[%clk 0:03:01]} 8. Nd2 {[%clk 0:02:49]}  Qa6 {[%clk 0:03:02]} 9. c4 {[%clk 0:02:47]}  Bb4 {[%clk 0:03:02]} 10. b3 {[%clk 0:02:47]}  Ne7 {[%clk 0:03:01]} 11. Ne2 {[%clk 0:02:46]}  Nd7 {[%clk 0:03:01]} 12. O-O {[%clk 0:02:46]}  Ng6 {[%clk 0:03:01]} 13. Nf3 {[%clk 0:02:46]}  Be7 {[%clk 0:03:01]} 14. g3 {[%clk 0:02:32]}  Bxg5 {[%clk 0:02:57]} 15. Nxg5 {[%clk 0:02:30]}  Ne7 {[%clk 0:02:53]} 16. Nf4 {[%clk 0:02:22]}  Nf5 {[%clk 0:02:51]} 17. Qc3 {[%clk 0:02:12]}  g6 {[%clk 0:02:47]} 18. Nfxe6 {[%clk 0:01:59]}  fxe6 {[%clk 0:02:47]} 19. Nxe6 {[%clk 0:01:59]}  Ke7 {[%clk 0:02:39]} 20. Nf4 {[%clk 0:01:49]}  Rhg8 {[%clk 0:02:26]} 21. cxd5 {[%clk 0:01:47]}  cxd5 {[%clk 0:02:27]} 22. Nxd5+ {[%clk 0:01:47]}  Kf7 {[%clk 0:02:27]} 23. Rfe1 {[%clk 0:01:34]}  Qc6 {[%clk 0:01:56]} 24. e6+ {[%clk 0:01:32]}  Kg7 {[%clk 0:01:56]} 25. Qxc6 {[%clk 0:01:05]}  bxc6 {[%clk 0:01:57]} 26. Nb4 {[%clk 0:01:05]}  Nf6 {[%clk 0:01:51]} 27. Nxc6 {[%clk 0:01:03]}  Rgc8 {[%clk 0:01:47]} 28. Rac1 {[%clk 0:01:02]}  Rc7 {[%clk 0:01:40]} 29. b4 {[%clk 0:00:44]}  a6 {[%clk 0:01:40]} 30. a4 {[%clk 0:00:44]}  Nd5 {[%clk 0:01:33]} 31. Rc5 {[%clk 0:00:40]}  Rac8 {[%clk 0:01:17]} 32. b5 {[%clk 0:00:38]}  axb5 {[%clk 0:01:17]} 33. axb5 {[%clk 0:00:38]}  Nde7 {[%clk 0:01:09]} 34. d5 {[%clk 0:00:36]}  Nd6 {[%clk 0:01:00]} 35. b6 {[%clk 0:00:34]}  Rb7 {[%clk 0:00:56]} 36. Rcc1 {[%clk 0:00:18]}  Nxd5 {[%clk 0:00:48]} 37. e7 {[%clk 0:00:16]}  Rxb6 {[%clk 0:00:41]} 38. Re6 {[%clk 0:00:08]}  Rbxc6 {[%clk 0:00:35]} 39. Rxc6 {[%clk 0:00:07]}  Rxc6 {[%clk 0:00:36]} 40. e8=N+ {[%clk 0:00:07]}  Kf7 {[%clk 0:00:28]} 41. Rxd6 {[%clk 0:00:07]}  Rc5 {[%clk 0:00:17]} 42. Rd8 {[%clk 0:00:06]}  Ke7 {[%clk 0:00:12]} 43. Rb8 {[%clk 0:00:07]}  Nc3 {[%clk 0:00:08]} 44. Ng7 {[%clk 0:00:06]}  Kf6 {[%clk 0:00:07]} 45. Rb7 {[%clk 0:00:05]}  Re5 {[%clk 0:00:06]} 46. Kg2 {[%clk 0:00:02]}  Re7 {[%clk 0:00:06]} 47. Rxe7 {[%clk 0:00:01]}  Kxe7 {[%clk 0:00:07]} 48. g4 {[%clk 0:00:02]}  hxg4 {[%clk 0:00:04]} 49. h5 {[%clk 0:00:02]}  gxh5 {[%clk 0:00:01]} 50. Nxh5 {[%clk 0:00:02]}  Ke6 {[%clk 0:00:02]} 51. Kg3 {[%clk 0:00:02]}  Kf5 {[%clk 0:00:02]} 52. f3 {[%clk 0:00:03]}  gxf3 {[%clk 0:00:02]} 53. Kxf3 {[%clk 0:00:03]} 1/2-1/2


[Site "https://www.chess.com"]

[Event "Titled Tuesday Blitz January 03 Early 2023"]
[White "Manukian, Artak"]
[Black "Pakleza, Zbigniew"]
[WhiteFideId "13301373"]
[BlackFideId "1119290"]
[WhiteElo "2196"]
[BlackElo "2494"]
[Result "0-1"]
[Round "11"]
[TimeControl "180+2"]
[Date "2023.01.03"]
[WhiteClock "0:00:03"]
[BlackClock "0:00:14"]

1. e4 {[%clk 0:03:00]}  d6 {[%clk 0:02:58]} 2. d4 {[%clk 0:03:00]}  Nf6 {[%clk 0:02:58]} 3. f3 {[%clk 0:02:54]}  Nbd7 {[%clk 0:02:57]} 4. c4 {[%clk 0:02:54]}  e5 {[%clk 0:02:58]} 5. d5 {[%clk 0:02:54]}  Be7 {[%clk 0:02:59]} 6. Nc3 {[%clk 0:02:55]}  O-O {[%clk 0:03:00]} 7. g4 {[%clk 0:02:53]}  Ne8 {[%clk 0:02:59]} 8. Bd3 {[%clk 0:02:47]}  Bg5 {[%clk 0:02:55]} 9. Nge2 {[%clk 0:02:46]}  g6 {[%clk 0:02:53]} 10. Ng3 {[%clk 0:02:42]}  Ng7 {[%clk 0:02:51]} 11. Bxg5 {[%clk 0:02:36]}  Qxg5 {[%clk 0:02:52]} 12. Qd2 {[%clk 0:02:36]}  Qf4 {[%clk 0:02:43]} 13. Qf2 {[%clk 0:01:59]}  Nc5 {[%clk 0:02:39]} 14. Bc2 {[%clk 0:01:58]}  a5 {[%clk 0:02:32]} 15. Nb5 {[%clk 0:01:55]}  Bd7 {[%clk 0:02:18]} 16. Nxc7 {[%clk 0:01:49]}  Rac8 {[%clk 0:02:18]} 17. Nb5 {[%clk 0:01:50]}  Bxb5 {[%clk 0:02:18]} 18. cxb5 {[%clk 0:01:50]}  Nd7 {[%clk 0:02:00]} 19. Bd1 {[%clk 0:01:33]}  Rc5 {[%clk 0:01:56]} 20. Ne2 {[%clk 0:01:28]}  Qf6 {[%clk 0:01:51]} 21. Nc3 {[%clk 0:01:27]}  Nb6 {[%clk 0:01:43]} 22. Be2 {[%clk 0:01:22]}  Rfc8 {[%clk 0:01:42]} 23. O-O {[%clk 0:01:17]}  Qg5 {[%clk 0:01:41]} 24. Kh1 {[%clk 0:01:12]}  h5 {[%clk 0:01:38]} 25. h3 {[%clk 0:01:07]}  Kf8 {[%clk 0:01:37]} 26. Rfe1 {[%clk 0:00:53]}  hxg4 {[%clk 0:01:24]} 27. hxg4 {[%clk 0:00:41]}  Qd2 {[%clk 0:01:22]} 28. Rab1 {[%clk 0:00:35]}  Nc4 {[%clk 0:01:05]} 29. Red1 {[%clk 0:00:26]}  Qh6+ {[%clk 0:00:56]} 30. Qh2 {[%clk 0:00:20]}  Qxh2+ {[%clk 0:00:56]} 31. Kxh2 {[%clk 0:00:21]}  Nxb2 {[%clk 0:00:57]} 32. Rxb2 {[%clk 0:00:21]}  Rxc3 {[%clk 0:00:57]} 33. b6 {[%clk 0:00:20]}  Ra3 {[%clk 0:00:52]} 34. Rdd2 {[%clk 0:00:19]}  Ne8 {[%clk 0:00:49]} 35. Rdc2 {[%clk 0:00:18]}  Rb8 {[%clk 0:00:40]} 36. Bb5 {[%clk 0:00:16]}  Rxf3 {[%clk 0:00:39]} 37. Rc4 {[%clk 0:00:14]}  Nf6 {[%clk 0:00:34]} 38. Rbc2 {[%clk 0:00:13]}  Kg7 {[%clk 0:00:30]} 39. Rc8 {[%clk 0:00:12]}  Rxc8 {[%clk 0:00:28]} 40. Rxc8 {[%clk 0:00:13]}  Ra3 {[%clk 0:00:21]} 41. Rc7 {[%clk 0:00:10]}  Rxa2+ {[%clk 0:00:19]} 42. Kg1 {[%clk 0:00:10]}  Rb2 {[%clk 0:00:20]} 43. Bc6 {[%clk 0:00:05]}  bxc6 {[%clk 0:00:15]} 44. Rxc6 {[%clk 0:00:01]}  Nxe4 {[%clk 0:00:15]} 45. Rxd6 {[%clk 0:00:02]}  Nxd6 {[%clk 0:00:15]} 46. b7 {[%clk 0:00:03]}  Rxb7 {[%clk 0:00:14]} 47. g5 {[%clk 0:00:03]}  Rb2 {[%clk 0:00:14]} 0-1


[Site "https://www.chess.com"]

[Event "Titled Tuesday Blitz January 03 Early 2023"]
[White "Atakhan, Abtin"]
[Black "Demchenko, Anton"]
[WhiteFideId "22502203"]
[BlackFideId "4160258"]
[WhiteElo "2422"]
[BlackElo "2623"]
[Result "1-0"]
[Round "11"]
[TimeControl "180+2"]
[Date "2023.01.03"]
[WhiteClock "0:00:05"]
[BlackClock "0:00:09"]

1. Nf3 {[%clk 0:03:00]}  d5 {[%clk 0:02:57]} 2. d4 {[%clk 0:02:55]}  Bf5 {[%clk 0:02:56]} 3. Bf4 {[%clk 0:02:54]}  e6 {[%clk 0:02:56]} 4. e3 {[%clk 0:02:54]}  Bd6 {[%clk 0:02:56]} 5. Bd3 {[%clk 0:02:49]}  Bxf4 {[%clk 0:02:51]} 6. exf4 {[%clk 0:02:48]}  Ne7 {[%clk 0:02:51]} 7. O-O {[%clk 0:02:47]}  Bg4 {[%clk 0:02:47]} 8. h3 {[%clk 0:02:41]}  Bxf3 {[%clk 0:02:46]} 9. Qxf3 {[%clk 0:02:42]}  g6 {[%clk 0:02:46]} 10. Nd2 {[%clk 0:02:39]}  Qd6 {[%clk 0:02:45]} 11. Qe3 {[%clk 0:02:37]}  Nd7 {[%clk 0:02:40]} 12. a4 {[%clk 0:02:26]}  c5 {[%clk 0:02:39]} 13. Rfd1 {[%clk 0:01:34]}  c4 {[%clk 0:02:33]} 14. Bf1 {[%clk 0:01:31]}  Nf5 {[%clk 0:02:33]} 15. Qf3 {[%clk 0:01:20]}  Rg8 {[%clk 0:02:08]} 16. c3 {[%clk 0:01:17]}  g5 {[%clk 0:02:05]} 17. fxg5 {[%clk 0:01:13]}  Rxg5 {[%clk 0:02:03]} 18. b3 {[%clk 0:01:06]}  cxb3 {[%clk 0:02:01]} 19. Nxb3 {[%clk 0:01:07]}  O-O-O {[%clk 0:01:48]} 20. c4 {[%clk 0:00:58]}  Rdg8 {[%clk 0:01:32]} 21. cxd5 {[%clk 0:00:55]}  Nh4 {[%clk 0:01:32]} 22. Qc3+ {[%clk 0:00:56]}  Kb8 {[%clk 0:01:32]} 23. g4 {[%clk 0:00:34]}  Qxd5 {[%clk 0:01:26]} 24. Qg3+ {[%clk 0:00:26]}  Ka8 {[%clk 0:01:24]} 25. Qxh4 {[%clk 0:00:25]}  Qxb3 {[%clk 0:01:24]} 26. Rab1 {[%clk 0:00:23]}  Qa3 {[%clk 0:00:51]} 27. Bg2 {[%clk 0:00:23]}  Nb6 {[%clk 0:00:52]} 28. Qxh7 {[%clk 0:00:17]}  R5g7 {[%clk 0:00:33]} 29. Qc2 {[%clk 0:00:17]}  f5 {[%clk 0:00:31]} 30. a5 {[%clk 0:00:16]}  Nd5 {[%clk 0:00:22]} 31. Rdc1 {[%clk 0:00:16]}  Rb8 {[%clk 0:00:15]} 32. a6 {[%clk 0:00:16]}  Qxa6 {[%clk 0:00:15]} 33. Ra1 {[%clk 0:00:17]}  Qb6 {[%clk 0:00:15]} 34. Rcb1 {[%clk 0:00:17]}  Qc6 {[%clk 0:00:12]} 35. Qa2 {[%clk 0:00:12]}  a6 {[%clk 0:00:12]} 36. Rc1 {[%clk 0:00:08]}  Qd6 {[%clk 0:00:13]} 37. Kh1 {[%clk 0:00:06]}  fxg4 {[%clk 0:00:13]} 38. Rab1 {[%clk 0:00:06]}  gxh3 {[%clk 0:00:09]} 39. Be4 {[%clk 0:00:07]}  h2 {[%clk 0:00:09]} 40. Qa5 {[%clk 0:00:05]}  Rbg8 {[%clk 0:00:08]} 41. Qd2 {[%clk 0:00:02]}  Rh8 {[%clk 0:00:08]} 42. Qb2 {[%clk 0:00:02]}  Rg1+ {[%clk 0:00:08]} 43. Rxg1 {[%clk 0:00:02]}  hxg1=Q+ {[%clk 0:00:09]} 44. Kxg1 {[%clk 0:00:03]}  Qh2+ {[%clk 0:00:03]} 45. Kf1 {[%clk 0:00:04]}  Qc7 {[%clk 0:00:04]} 46. Qb3 {[%clk 0:00:03]}  Rf8 {[%clk 0:00:03]} 47. Bg2 {[%clk 0:00:03]}  Kb8 {[%clk 0:00:02]} 48. Kg1 {[%clk 0:00:03]}  Qd7 {[%clk 0:00:02]} 49. Qa3 {[%clk 0:00:03]}  Rd8 {[%clk 0:00:02]} 50. Rc1 {[%clk 0:00:04]}  Nf4 {[%clk 0:00:02]} 51. Qg3 {[%clk 0:00:04]}  Qd6 {[%clk 0:00:02]} 52. Bf1 {[%clk 0:00:04]}  Nh5 {[%clk 0:00:02]} 53. Qg5 {[%clk 0:00:03]}  Nf4 {[%clk 0:00:02]} 54. Qg3 {[%clk 0:00:02]}  Nd5 {[%clk 0:00:03]} 55. Qxd6+ {[%clk 0:00:02]}  Rxd6 {[%clk 0:00:04]} 56. Bg2 {[%clk 0:00:01]}  Nf4 {[%clk 0:00:04]} 57. Bf3 {[%clk 0:00:02]}  Rxd4 {[%clk 0:00:04]} 58. Rb1 {[%clk 0:00:02]}  Nd5 {[%clk 0:00:04]} 59. Re1 {[%clk 0:00:02]}  Nf4 {[%clk 0:00:04]} 60. Kh2 {[%clk 0:00:02]}  Rd7 {[%clk 0:00:04]} 61. Kg3 {[%clk 0:00:02]}  Rf7 {[%clk 0:00:05]} 62. Bg4 {[%clk 0:00:01]}  a5 {[%clk 0:00:05]} 63. Ra1 {[%clk 0:00:01]}  b6 {[%clk 0:00:05]} 64. Ra4 {[%clk 0:00:02]}  Ng6 {[%clk 0:00:04]} 65. Bxe6 {[%clk 0:00:02]}  Re7 {[%clk 0:00:05]} 66. Bf5 {[%clk 0:00:03]}  Ne5 {[%clk 0:00:05]} 67. Re4 {[%clk 0:00:03]}  Kc7 {[%clk 0:00:04]} 68. f4 {[%clk 0:00:03]}  Nc6 {[%clk 0:00:05]} 69. Rc4 {[%clk 0:00:04]}  Kd6 {[%clk 0:00:05]} 70. Be4 {[%clk 0:00:04]}  Nb4 {[%clk 0:00:05]} 71. Bf3 {[%clk 0:00:03]}  b5 {[%clk 0:00:06]} 72. Rd4+ {[%clk 0:00:04]}  Kc5 {[%clk 0:00:06]} 73. Rd8 {[%clk 0:00:04]}  a4 {[%clk 0:00:07]} 74. f5 {[%clk 0:00:04]}  Rf7 {[%clk 0:00:06]} 75. Kf4 {[%clk 0:00:05]}  a3 {[%clk 0:00:06]} 76. Ra8 {[%clk 0:00:05]}  a2 {[%clk 0:00:07]} 77. Ke5 {[%clk 0:00:05]}  Re7+ {[%clk 0:00:07]} 78. Kf6 {[%clk 0:00:05]}  Re3 {[%clk 0:00:08]} 79. Bb7 {[%clk 0:00:05]}  Re2 {[%clk 0:00:07]} 80. Kg7 {[%clk 0:00:04]}  Rg2+ {[%clk 0:00:07]} 81. Bxg2 {[%clk 0:00:04]}  Kc4 {[%clk 0:00:06]} 82. f6 {[%clk 0:00:04]}  Kb3 {[%clk 0:00:05]} 83. f7 {[%clk 0:00:04]}  Kb2 {[%clk 0:00:05]} 84. Rxa2+ {[%clk 0:00:05]}  Nxa2 {[%clk 0:00:05]} 85. f8=Q {[%clk 0:00:05]}  b4 {[%clk 0:00:06]} 86. Bd5 {[%clk 0:00:05]}  Nc3 {[%clk 0:00:06]} 87. Qxb4+ {[%clk 0:00:05]}  Kc2 {[%clk 0:00:07]} 88. Bb3+ {[%clk 0:00:04]}  Kd2 {[%clk 0:00:08]} 89. Kf6 {[%clk 0:00:04]}  Kd3 {[%clk 0:00:09]} 90. Qc4+ {[%clk 0:00:04]}  Kd2 {[%clk 0:00:09]} 91. Qd4+ {[%clk 0:00:05]} 1-0


[Site "https://www.chess.com"]

[Event "Titled Tuesday Blitz January 03 Early 2023"]
[White "Gunina, Valentina"]
[Black "Aloma Vidal, Robert"]
[WhiteFideId "4167570"]
[BlackFideId "2260409"]
[WhiteElo "2469"]
[BlackElo "2442"]
[Result "0-1"]
[Round "11"]
[TimeControl "180+2"]
[Date "2023.01.03"]
[WhiteClock "0:02:25"]
[BlackClock "0:00:42"]

1. d4 {[%clk 0:03:00]}  d5 {[%clk 0:02:58]} 2. c4 {[%clk 0:03:01]}  c6 {[%clk 0:02:57]} 3. Nf3 {[%clk 0:03:01]}  Nf6 {[%clk 0:02:57]} 4. Nc3 {[%clk 0:03:01]}  e6 {[%clk 0:02:57]} 5. e3 {[%clk 0:03:02]}  Nbd7 {[%clk 0:02:58]} 6. Be2 {[%clk 0:03:02]}  b6 {[%clk 0:02:46]} 7. b3 {[%clk 0:03:01]}  Bb7 {[%clk 0:02:47]} 8. Bb2 {[%clk 0:03:01]}  Bd6 {[%clk 0:02:40]} 9. O-O {[%clk 0:03:01]}  O-O {[%clk 0:02:40]} 10. Bd3 {[%clk 0:03:02]}  c5 {[%clk 0:02:36]} 11. cxd5 {[%clk 0:03:02]}  exd5 {[%clk 0:02:36]} 12. Rc1 {[%clk 0:03:00]}  Rc8 {[%clk 0:02:35]} 13. Nb5 {[%clk 0:03:00]}  Bb8 {[%clk 0:02:34]} 14. h3 {[%clk 0:02:58]}  a6 {[%clk 0:02:26]} 15. Nc3 {[%clk 0:02:58]}  c4 {[%clk 0:02:26]} 16. bxc4 {[%clk 0:02:58]}  dxc4 {[%clk 0:02:26]} 17. Bb1 {[%clk 0:02:58]}  b5 {[%clk 0:02:26]} 18. Ng5 {[%clk 0:02:55]}  b4 {[%clk 0:02:08]} 19. Nce4 {[%clk 0:02:54]}  Nxe4 {[%clk 0:02:06]} 20. Nxe4 {[%clk 0:02:54]}  f5 {[%clk 0:01:56]} 21. Nd2 {[%clk 0:02:48]}  Nb6 {[%clk 0:01:39]} 22. Ba1 {[%clk 0:02:43]}  a5 {[%clk 0:01:35]} 23. Nf3 {[%clk 0:02:42]}  Qd5 {[%clk 0:01:31]} 24. Re1 {[%clk 0:02:39]}  Rfe8 {[%clk 0:01:28]} 25. Qc2 {[%clk 0:02:38]}  g6 {[%clk 0:01:26]} 26. Qe2 {[%clk 0:02:37]}  Qd7 {[%clk 0:01:10]} 27. Ne5 {[%clk 0:02:35]}  Bxe5 {[%clk 0:01:00]} 28. dxe5 {[%clk 0:02:35]}  Qc6 {[%clk 0:01:00]} 29. f4 {[%clk 0:02:35]}  c3 {[%clk 0:00:59]} 30. a3 {[%clk 0:02:32]}  Red8 {[%clk 0:00:55]} 31. axb4 {[%clk 0:02:32]}  axb4 {[%clk 0:00:55]} 32. Ba2+ {[%clk 0:02:32]}  Kg7 {[%clk 0:00:54]} 33. Qc2 {[%clk 0:02:28]}  Rd2 {[%clk 0:00:44]} 34. Qxd2 {[%clk 0:02:25]}  cxd2 {[%clk 0:00:45]} 35. e6+ {[%clk 0:02:25]}  Kf8 {[%clk 0:00:42]} 0-1


[Site "https://www.chess.com"]

[Event "Titled Tuesday Blitz January 03 Early 2023"]
[White "Avila Pavas, Santiago"]
[Black "Vlassov, Nikolai"]
[WhiteFideId "4437128"]
[BlackFideId "4103360"]
[WhiteElo "2522"]
[BlackElo "2283"]
[Result "0-1"]
[Round "11"]
[TimeControl "180+2"]
[Date "2023.01.03"]
[WhiteClock "0:00:22"]
[BlackClock "0:00:15"]

1. d4 {[%clk 0:03:00]}  Nf6 {[%clk 0:02:59]} 2. Nf3 {[%clk 0:03:01]}  e6 {[%clk 0:02:59]} 3. Bf4 {[%clk 0:03:01]}  c5 {[%clk 0:02:58]} 4. e3 {[%clk 0:03:01]}  b6 {[%clk 0:02:58]} 5. Nbd2 {[%clk 0:03:00]}  Bb7 {[%clk 0:02:58]} 6. c3 {[%clk 0:02:59]}  Be7 {[%clk 0:02:58]} 7. Bd3 {[%clk 0:02:56]}  d6 {[%clk 0:02:58]} 8. Qe2 {[%clk 0:02:53]}  Nbd7 {[%clk 0:02:58]} 9. O-O-O {[%clk 0:02:53]}  Nh5 {[%clk 0:02:44]} 10. Bg3 {[%clk 0:02:52]}  Qc7 {[%clk 0:02:33]} 11. Kb1 {[%clk 0:02:47]}  O-O-O {[%clk 0:02:28]} 12. e4 {[%clk 0:02:47]}  Kb8 {[%clk 0:02:22]} 13. Rc1 {[%clk 0:02:41]}  g5 {[%clk 0:01:52]} 14. Rhd1 {[%clk 0:02:39]}  Nf4 {[%clk 0:01:44]} 15. Qe3 {[%clk 0:02:10]}  Nxg2 {[%clk 0:01:41]} 16. Qe2 {[%clk 0:02:10]}  Nf4 {[%clk 0:01:40]} 17. Qe3 {[%clk 0:02:09]}  e5 {[%clk 0:01:36]} 18. d5 {[%clk 0:02:04]}  f5 {[%clk 0:01:29]} 19. c4 {[%clk 0:02:03]}  Nxd3 {[%clk 0:01:27]} 20. Qxd3 {[%clk 0:02:03]}  f4 {[%clk 0:01:27]} 21. Nf1 {[%clk 0:01:59]}  h5 {[%clk 0:01:24]} 22. h4 {[%clk 0:01:58]}  g4 {[%clk 0:01:23]} 23. N3d2 {[%clk 0:01:55]}  fxg3 {[%clk 0:01:22]} 24. fxg3 {[%clk 0:01:56]}  Bc8 {[%clk 0:01:17]} 25. Ne3 {[%clk 0:01:55]}  Nf6 {[%clk 0:01:13]} 26. Rf1 {[%clk 0:01:54]}  Rdf8 {[%clk 0:01:12]} 27. Nf5 {[%clk 0:01:34]}  Bxf5 {[%clk 0:01:11]} 28. Rxf5 {[%clk 0:01:35]}  Nd7 {[%clk 0:01:11]} 29. Rcf1 {[%clk 0:01:35]}  Qd8 {[%clk 0:01:05]} 30. R1f2 {[%clk 0:01:26]}  Qe8 {[%clk 0:01:02]} 31. Nf1 {[%clk 0:01:24]}  Rxf5 {[%clk 0:01:01]} 32. Rxf5 {[%clk 0:01:24]}  Rf8 {[%clk 0:01:01]} 33. Ne3 {[%clk 0:01:24]}  Rxf5 {[%clk 0:01:00]} 34. Nxf5 {[%clk 0:01:25]}  Bf8 {[%clk 0:00:57]} 35. Qe3 {[%clk 0:01:23]}  Qg6 {[%clk 0:00:54]} 36. Kc2 {[%clk 0:01:24]}  Nf6 {[%clk 0:00:48]} 37. Kd3 {[%clk 0:01:15]}  Ng8 {[%clk 0:00:46]} 38. Qg5 {[%clk 0:01:15]}  Qxg5 {[%clk 0:00:45]} 39. hxg5 {[%clk 0:01:16]}  Kc7 {[%clk 0:00:44]} 40. g6 {[%clk 0:01:15]}  Kd7 {[%clk 0:00:43]} 41. a3 {[%clk 0:01:00]}  a6 {[%clk 0:00:40]} 42. a4 {[%clk 0:01:00]}  Bh6 {[%clk 0:00:32]} 43. b3 {[%clk 0:00:58]}  Bg5 {[%clk 0:00:31]} 44. Kc2 {[%clk 0:00:57]}  Bf6 {[%clk 0:00:30]} 45. Kd3 {[%clk 0:00:57]}  Ne7 {[%clk 0:00:22]} 46. g7 {[%clk 0:00:57]}  Ng8 {[%clk 0:00:20]} 47. Ke3 {[%clk 0:00:56]}  Bg5+ {[%clk 0:00:20]} 48. Kd3 {[%clk 0:00:57]}  Bd8 {[%clk 0:00:20]} 49. Ke3 {[%clk 0:00:56]}  Bc7 {[%clk 0:00:20]} 50. Kd3 {[%clk 0:00:57]}  Ke8 {[%clk 0:00:20]} 51. Ke3 {[%clk 0:00:52]}  Kf7 {[%clk 0:00:21]} 52. Kd3 {[%clk 0:00:52]}  Nf6 {[%clk 0:00:20]} 53. Ke3 {[%clk 0:00:53]}  Ne8 {[%clk 0:00:19]} 54. Ne7 {[%clk 0:00:34]}  Kxg7 {[%clk 0:00:16]} 55. Nc6 {[%clk 0:00:29]}  Kf6 {[%clk 0:00:16]} 56. Na7 {[%clk 0:00:29]}  Ke7 {[%clk 0:00:15]} 57. Nc8+ {[%clk 0:00:29]}  Kd7 {[%clk 0:00:15]} 58. Na7 {[%clk 0:00:30]}  Ng7 {[%clk 0:00:15]} 59. Nc6 {[%clk 0:00:30]}  Ne8 {[%clk 0:00:12]} 60. Na7 {[%clk 0:00:31]}  Nf6 {[%clk 0:00:13]} 61. Nc6 {[%clk 0:00:31]}  Ng8 {[%clk 0:00:13]} 62. Na7 {[%clk 0:00:29]}  Ne7 {[%clk 0:00:13]} 63. Kf2 {[%clk 0:00:23]}  Bb8 {[%clk 0:00:14]} 64. Nc6 {[%clk 0:00:23]}  Nxc6 {[%clk 0:00:14]} 65. dxc6+ {[%clk 0:00:24]}  Kxc6 {[%clk 0:00:14]} 66. Kg2 {[%clk 0:00:22]}  b5 {[%clk 0:00:15]} 0-1


[Site "https://www.chess.com"]